bitfinex/quotes_BTCUSD_20250123
["timestamp","ask_amount","ask_price","bid_price","bid_amount"]
[1737650915181,0.24784593,106120.0,106110.0,0.094241]
[1737650915405,0.023,106110.0,106100.0,0.282734]
[1737650915649,0.12034729,106110.0,106100.0,0.282734]
[1737650916688,0.55666681,106110.0,106090.0,0.377014]
[1737650916983,0.27134729,106110.0,106100.0,0.09425]
[1737650917216,0.001,106110.0,106100.0,0.09425]
[1737650918185,0.00049864,106120.0,106110.0,0.094241]
[1737650918421,0.00049864,106120.0,106110.0,0.19158829]
[1737650919376,0.00049864,106120.0,106110.0,0.36158829]
[1737650919615,0.43615152,106180.0,106130.0,0.188448]
[1737650919901,0.094188,106170.0,106160.0,0.094193]
[1737650920156,0.094188,106170.0,106160.0,0.094197]
[1737650920157,0.34512781,106170.0,106160.0,0.094197]
[1737650920389,0.25093981,106170.0,106150.0,0.565206]
[1737650920632,0.46925135,106180.0,106160.0,0.188379]
[1737650920880,0.15359252,106170.0,106160.0,0.282571]
[1737650921155,0.15,106170.0,106160.0,0.282571]
[1737650921390,0.25585542,106180.0,106160.0,0.282571]
[1737650921391,0.25585542,106180.0,106170.0,0.094188]
[1737650921621,0.7152102,106200.0,106170.0,0.094188]
[1737650921874,0.7152102,106200.0,106190.0,0.09417]
[1737650921875,0.00029968,106200.0,106190.0,0.09417]
[1737650922366,0.53374049,106200.0,106180.0,0.282523]
[1737650922635,0.43957449,106200.0,106180.0,0.094176]
[1737650922900,0.1538922,106200.0,106160.0,0.00014978]
[1737650923153,0.25823949,106200.0,106180.0,0.282526]
[1737650923414,0.54074149,106200.0,106180.0,0.282526]
[1737650923643,0.117182,106180.0,106160.0,0.28272378]
[1737650923879,0.21452929,106180.0,106160.0,0.47111678]
[1737650924117,0.12034729,106180.0,106170.0,0.094188]
[1737650924384,0.432521,106190.0,106180.0,0.001]
[1737650924633,0.55286829,106190.0,106180.0,0.001]
[1737650924875,0.68346081,106190.0,106180.0,0.001]
[1737650925111,0.70646081,106190.0,106180.0,0.001]
[1737650925367,0.75646081,106190.0,106180.0,0.001]
[1737650925602,0.094188,106170.0,106160.0,0.00014978]
[1737650925839,0.426745,106180.0,106160.0,0.09533878]
[1737650925840,0.53033152,106180.0,106160.0,0.09533878]
[1737650926081,0.15,106170.0,106160.0,0.28373278]
[1737650926318,0.27593694,106190.0,106170.0,0.188363]
[1737650926594,0.27593694,106190.0,106170.0,0.282544]
[1737650926595,0.19151729,106190.0,106170.0,0.282544]
[1737650926813,0.19151729,106190.0,106180.0,0.001]
[1737650926814,0.46452,106190.0,106180.0,0.001]
[1737650927296,0.117188,106170.0,106160.0,0.00014978]
[1737650927572,0.27078052,106170.0,106160.0,0.00114978]
[1737650927807,0.42078052,106170.0,106160.0,0.09534678]
[1737650928073,0.43958006,106190.0,106160.0,0.00114978]
[1737650928320,0.43958006,106190.0,106180.0,0.094179]
[1737650928321,0.00029925,106190.0,106180.0,0.094179]
[1737650928553,0.15029925,106190.0,106180.0,0.094179]
[1737650928829,0.24446925,106190.0,106180.0,0.094179]
[1737650929069,0.69075906,106190.0,106170.0,0.470912]
[1737650929311,0.87911006,106190.0,106170.0,0.65928]
[1737650929567,0.71375906,106190.0,106180.0,0.094179]
[1737650929820,0.90210906,106190.0,106170.0,0.282546]
[1737650930076,0.90210906,106190.0,106160.0,0.18852878]
[1737650930077,0.023,106170.0,106160.0,0.09434578]
[1737650930803,0.51812781,106170.0,106160.0,0.00014978]
[1737650931610,0.74172033,106170.0,106160.0,0.00014978]
[1737650932138,0.80162033,106170.0,106160.0,0.00014978]
[1737650932401,0.51812781,106170.0,106160.0,0.00014978]
[1737650932645,0.49512781,106170.0,106160.0,0.00014978]
[1737650932884,0.49512781,106170.0,106160.0,0.28273778]
[1737650932885,0.15359252,106170.0,106160.0,0.28273778]
[1737650933135,0.15359252,106170.0,106110.0,0.00957046]
[1737650933136,0.05,106150.0,106110.0,0.00957046]
[1737650933403,0.15,106110.0,106080.0,0.0001425]
[1737650933650,0.09734729,106110.0,106090.0,0.18851]
[1737650933858,0.282688,106130.0,106110.0,0.094241]
[1737650934057,0.094232,106120.0,106100.0,0.471218]
[1737650934261,0.15359252,106110.0,106100.0,0.282728]
[1737650934836,0.15359252,106110.0,106100.0,0.094242]
[1737650935067,0.24783652,106110.0,106090.0,0.471273]
[1737650935246,0.15359252,106100.0,106090.0,0.282762]
[1737650935644,0.43944981,106100.0,106080.0,0.00064114]
[1737650935861,0.24785152,106090.0,106080.0,0.00064114]
[1737650936280,0.15359252,106090.0,106080.0,0.09490914]
[1737650936479,0.24785152,106090.0,106080.0,0.00064114]
[1737650936689,0.15359252,106090.0,106080.0,0.09490914]
[1737650937049,0.15359252,106090.0,106080.0,0.09590914]
[1737650937449,0.24785152,106090.0,106080.0,0.09590914]
[1737650937882,0.15359252,106090.0,106080.0,0.09590914]
[1737650938702,0.24785152,106090.0,106080.0,0.09590914]
[1737650938903,0.15359252,106090.0,106080.0,0.09590914]
[1737650939948,0.58427698,106090.0,106080.0,0.00164114]
[1737650940153,0.78919666,106090.0,106080.0,0.00164114]
[1737650941101,0.80919666,106090.0,106080.0,0.00164114]
[1737650941357,0.75919666,106090.0,106080.0,0.00164114]
[1737650941581,0.73919666,106090.0,106080.0,0.00164114]
[1737650941799,0.72671101,106090.0,106080.0,0.00164114]
[1737650942004,0.50011849,106090.0,106080.0,0.00064114]
[1737650942406,0.67671101,106090.0,106080.0,0.00064114]
[1737650942763,0.51852926,106090.0,106080.0,0.00064114]
[1737650942980,0.69512178,106090.0,106080.0,0.00064114]
[1737650943408,0.094279,106070.0,106030.0,0.208259]
[1737650943565,0.19162629,106070.0,106060.0,0.094286]
[1737650944589,0.15359252,106070.0,106060.0,0.094286]
[1737650944774,0.15359252,106080.0,106050.0,0.754311]
[1737650944976,0.15359252,106080.0,106070.0,0.094277]
[1737650945179,0.15359252,106080.0,106070.0,0.282819]
[1737650945625,0.05,106070.0,106060.0,0.188572]
[1737650945836,0.40093981,106070.0,106050.0,0.188579]
[1737650945981,0.40093981,106060.0,106050.0,0.094288]
[1737650946181,0.05,106050.0,106040.0,0.28289]
[1737650946397,0.22,106040.0,106000.0,0.01964]
[1737650946642,0.22,106040.0,106010.0,0.282974]
[1737650946643,0.15359252,106020.0,106010.0,0.282974]
[1737650946816,0.15359252,106020.0,106010.0,0.094323]
[1737650947024,0.35359252,106030.0,106020.0,0.094321]
[1737650947195,0.15,106030.0,106020.0,0.094321]
[1737650947573,0.15359252,106040.0,106030.0,0.094312]
[1737650947730,0.22359252,106040.0,106030.0,0.094312]
[1737650947935,0.37359252,106040.0,106030.0,0.094312]
[1737650948125,0.35359252,106040.0,106030.0,0.094312]
[1737650948330,0.30359252,106040.0,106030.0,0.094312]
[1737650948520,0.15,106040.0,106030.0,0.094312]
[1737650948721,0.37359252,106040.0,106020.0,0.552082]
[1737650948921,0.15359252,106030.0,106020.0,0.363446]
[1737650949158,0.17359252,106030.0,106020.0,0.094317]
[1737650949366,0.15359252,106030.0,106020.0,0.094317]
[1737650949696,0.15359252,106030.0,106020.0,0.282958]
[1737650950019,0.15359252,106030.0,106010.0,0.471623]
[1737650950020,0.35359252,106030.0,106010.0,0.471623]
[1737650950200,0.35359252,106030.0,106020.0,0.094321]
[1737650950354,0.30359252,106030.0,106020.0,0.094321]
[1737650950565,0.15,106030.0,106020.0,0.094321]
[1737650951760,0.37359252,106040.0,106020.0,0.094321]
[1737650952001,0.001,106030.0,106020.0,0.282964]
[1737650952228,0.15468866,106030.0,106010.0,0.188649]
[1737650952396,0.20368866,106020.0,106000.0,0.37295865]
[1737650952603,0.07,106020.0,106000.0,0.37296165]
[1737650952804,0.32103595,106020.0,106000.0,0.28315096]
[1737650952986,0.15368866,106010.0,106000.0,0.28315096]
[1737650953208,0.20368866,106010.0,106000.0,0.00014996]
[1737650953409,0.22368866,106010.0,106000.0,0.00014996]
[1737650953807,0.63489732,106010.0,106000.0,0.00014996]
[1737650953991,0.49536595,106010.0,106000.0,0.00014996]
[1737650954194,0.51836595,106010.0,106000.0,0.00014996]
[1737650954436,0.49536595,106010.0,106000.0,0.00014996]
[1737650954906,0.51536595,106010.0,106000.0,0.00014996]
[1737650955108,0.49536595,106010.0,106000.0,0.00014996]
[1737650955659,0.32368866,106010.0,106000.0,0.00014996]
[1737650955835,0.37376628,106010.0,106000.0,0.00014996]
[1737650956034,0.51544357,106010.0,106000.0,0.00014996]
[1737650956731,0.32376628,106010.0,106000.0,0.00014996]
[1737650956937,0.37376628,106010.0,106000.0,0.09448896]
[1737650957338,0.49544357,106010.0,106000.0,0.00014996]
[1737650958217,0.42111357,106010.0,106000.0,0.00014996]
[1737650958417,0.40111357,106010.0,106000.0,0.09448896]
[1737650958556,0.05,106010.0,106000.0,0.28315596]
[1737650958753,0.20376628,106010.0,106000.0,0.28315596]
[1737650959452,0.15376628,106010.0,106000.0,0.28315596]
[1737650959654,0.22376628,106010.0,106000.0,0.09448896]
[1737650959858,0.22376628,106010.0,106000.0,0.00014996]
[1737650960187,0.80510985,106010.0,106000.0,0.00014996]
[1737650960497,0.80510985,106010.0,105970.0,0.01604055]
[1737650960498,0.267357,105980.0,105970.0,0.01604055]
[1737650960731,0.77493685,105980.0,105970.0,0.01653889]
[1737650961364,0.60117057,105980.0,105970.0,0.01653889]
[1737650962304,0.52747057,105980.0,105970.0,0.01653889]
[1737650962508,0.50447057,105980.0,105970.0,0.01653889]
[1737650962731,0.38276628,105980.0,105970.0,0.11090489]
[1737650963028,0.32376628,105980.0,105970.0,0.01653889]
[1737650963251,0.31276628,105980.0,105970.0,0.01653889]
[1737650963437,0.33276628,105980.0,105970.0,0.01653889]
[1737650963644,0.52447057,105980.0,105970.0,0.01653889]
[1737650964062,0.52747057,105980.0,105970.0,0.01653889]
[1737650964284,0.41011357,105980.0,105970.0,0.01653889]
[1737650964486,0.48011357,105980.0,105970.0,0.01653889]
[1737650964721,0.47111357,105980.0,105970.0,0.01653889]
[1737650964835,0.47911357,105980.0,105970.0,0.01653889]
[1737650965040,0.57347057,105980.0,105970.0,0.01653889]
[1737650965236,0.52923339,105980.0,105970.0,0.01653889]
[1737650965440,0.52123339,105980.0,105970.0,0.01653889]
[1737650965711,0.49547057,105980.0,105970.0,0.01653889]
[1737650966084,0.51847057,105980.0,105970.0,0.01653889]
[1737650970163,0.208769,105950.0,105920.0,0.271221]
[1737650970368,0.15376628,105930.0,105920.0,0.094404]
[1737650970709,0.36551657,105930.0,105910.0,0.2833807]
[1737650970915,0.36551657,105930.0,105910.0,0.0001427]
[1737650970916,0.22376628,105920.0,105910.0,0.0001427]
[1737650971117,0.54928985,105920.0,105910.0,0.0001427]
[1737650971369,0.39552357,105920.0,105910.0,0.0001427]
[1737650971689,0.69689545,105920.0,105910.0,0.0001427]
[1737650971893,0.20426428,105920.0,105910.0,0.0001427]
[1737650972089,0.41602157,105920.0,105910.0,0.0001427]
[1737650972288,0.32161157,105920.0,105910.0,0.0945617]
[1737650972758,0.32161157,105920.0,105910.0,0.0001427]
[1737650972965,0.15426428,105920.0,105910.0,0.0945617]
[1737650973170,0.000498,105920.0,105910.0,0.0945617]
[1737650973372,0.15426428,105920.0,105910.0,0.0945617]
[1737650973884,0.000498,105920.0,105910.0,0.0945617]
[1737650974085,0.000498,105920.0,105910.0,0.19190899]
[1737650974290,0.000498,105920.0,105910.0,0.26750899]
[1737650974487,0.000498,105920.0,105910.0,0.41750899]
[1737650974730,0.000498,105920.0,105910.0,0.46330899]
[1737650975459,0.000498,105920.0,105910.0,0.46953482]
[1737650975656,0.22376628,105970.0,105960.0,0.094375]
[1737650975872,0.32111357,105970.0,105960.0,0.09452499]
[1737650976051,0.27111357,105970.0,105960.0,0.10074853]
[1737650976450,0.25111357,105970.0,105960.0,0.00637353]
[1737650976660,0.25111357,105970.0,105960.0,0.00428935]
[1737650976867,0.25111357,105970.0,105960.0,0.10071486]
[1737650977056,0.25111357,105970.0,105960.0,0.0045792]
[1737650977227,0.81267325,105970.0,105960.0,0.0045792]
[1737650977433,0.05,105920.0,105910.0,0.2833927]
[1737650977638,0.41598381,105920.0,105910.0,0.0001427]
[1737650978404,0.32157381,105920.0,105910.0,0.0945617]
[1737650978604,0.00014938,105920.0,105910.0,0.0945617]
[1737650978777,0.07014938,105920.0,105910.0,0.0945617]
[1737650979191,0.22422652,105920.0,105910.0,0.0001427]
[1737650979397,0.38898381,105920.0,105910.0,0.0001427]
[1737650979716,0.36598381,105920.0,105910.0,0.0001427]
[1737650979871,0.27157381,105920.0,105910.0,0.0001427]
[1737650980075,0.34598381,105920.0,105910.0,0.0001427]
[1737650980292,0.65006095,105920.0,105910.0,0.0001427]
[1737650980657,0.51898381,105920.0,105910.0,0.0001427]
[1737650980966,0.42457381,105920.0,105910.0,0.0001427]
[1737650981259,0.02014938,105920.0,105910.0,0.0945617]
[1737650981462,0.70006095,105920.0,105910.0,0.0001427]
[1737650981739,0.67797867,105920.0,105910.0,0.0001427]
[1737650981879,0.52390153,105920.0,105910.0,0.0001427]
[1737650982343,0.65497867,105920.0,105910.0,0.0001427]
[1737650982642,0.75232596,105920.0,105910.0,0.0001427]
[1737650982877,0.77532596,105920.0,105910.0,0.0001427]
[1737650983427,0.72417867,105920.0,105910.0,0.0001427]
[1737650983593,0.57010153,105920.0,105910.0,0.0001427]
[1737650984006,0.72417867,105920.0,105910.0,0.0001427]
[1737650984197,0.79417867,105920.0,105910.0,0.0001427]
[1737650984408,0.85227867,105920.0,105910.0,0.0001427]
[1737650984705,0.79727607,105920.0,105910.0,0.0001427]
[1737650985290,0.44209893,105920.0,105910.0,0.0001427]
[1737650985465,0.33048893,105920.0,105910.0,0.0001427]
[1737650985664,0.26590407,105920.0,105910.0,0.0001427]
[1737650985990,0.094428,105900.0,105890.0,0.0001426]
[1737650986192,0.44785243,105900.0,105890.0,0.0001426]
[1737650987056,0.19177529,105900.0,105890.0,0.0001426]
[1737650987469,0.19177529,105900.0,105890.0,0.0945796]
[1737650987470,0.11734729,105900.0,105890.0,0.0945796]
[1737650988291,0.14933491,105920.0,105890.0,0.0001426]
[1737650988495,0.02,105920.0,105910.0,0.094419]
[1737650988701,0.07,105910.0,105890.0,0.1890016]
[1737650988904,0.11734729,105900.0,105890.0,0.0001426]
[1737650989104,0.41177529,105900.0,105890.0,0.0001426]
[1737650989507,0.41177529,105900.0,105890.0,0.0945796]
[1737650990135,0.26734729,105900.0,105890.0,0.0945796]
[1737650990366,0.07,105910.0,105900.0,0.094428]
[1737650990546,0.07,105900.0,105890.0,0.2834336]
[1737650990748,0.16734729,105900.0,105890.0,0.2834336]
[1737650991150,0.26177529,105900.0,105890.0,0.0001426]
[1737650991324,0.60168496,105900.0,105890.0,0.0001426]
[1737650991527,0.69958496,105900.0,105890.0,0.0001426]
[1737650991763,0.74958496,105900.0,105890.0,0.0001426]
[1737650991960,0.267446,105880.0,105870.0,0.0157413]
[1737650992243,0.36479329,105880.0,105870.0,0.0157413]
[1737650992448,0.84029486,105880.0,105870.0,0.0157413]
[1737650992652,0.72294757,105880.0,105870.0,0.0157413]
[1737650992804,0.264491,105840.0,105810.0,0.472524]
[1737650993007,0.60081129,105840.0,105820.0,0.094496]
[1737650993187,0.21183829,105830.0,105820.0,0.094997]
[1737650993389,0.21183829,105830.0,105820.0,0.000498]
[1737650993578,0.30142443,105830.0,105820.0,0.000498]
[1737650993962,0.57293969,105830.0,105820.0,0.000498]
[1737650994178,0.41600666,105830.0,105820.0,0.000498]
[1737650994387,0.49591543,105830.0,105820.0,0.000498]
[1737650994598,0.02,105830.0,105820.0,0.000498]
[1737650994785,0.09734729,105830.0,105820.0,0.094998]
[1737650994985,0.3485928,105830.0,105820.0,0.000498]
[1737650995190,0.25142443,105830.0,105820.0,0.094998]
[1737650995404,0.09734729,105830.0,105820.0,0.094998]
[1737650995608,0.30407714,105840.0,105830.0,0.094491]
[1737650995815,0.16734729,105840.0,105830.0,0.094491]
[1737650996018,0.25142443,105840.0,105830.0,0.094491]
[1737650996222,0.32142443,105840.0,105830.0,0.094491]
[1737650996398,0.07,105850.0,105840.0,0.094482]
[1737650996604,0.14734729,105850.0,105840.0,0.094482]
[1737650996810,0.22407714,105860.0,105850.0,0.094473]
[1737650996973,0.05,105860.0,105850.0,0.094473]
[1737650997169,0.20407714,105880.0,105870.0,0.094455]
[1737650997384,0.16734729,105880.0,105870.0,0.094455]
[1737650997582,0.02,105870.0,105860.0,0.28337]
[1737650997820,0.32142443,105870.0,105860.0,0.28337]
[1737650998030,0.05,105870.0,105860.0,0.28337]
[1737650998237,0.02,105860.0,105850.0,0.188934]
[1737650998435,0.22407714,105860.0,105850.0,0.000498]
[1737650998627,0.07,105860.0,105850.0,0.094971]
[1737650999539,0.36888843,105860.0,105850.0,0.000498]
[1737650999950,0.51888843,105860.0,105850.0,0.000498]
[1737651000352,0.56508843,105860.0,105850.0,0.000498]
[1737651001845,0.57449881,105860.0,105850.0,0.000498]
[1737651002046,0.39742167,105860.0,105850.0,0.000498]
[1737651002291,0.35122167,105860.0,105850.0,0.000498]
[1737651002450,0.283381,105870.0,105850.0,0.283914]
[1737651002652,0.14734729,105870.0,105860.0,0.094464]
[1737651002904,0.07,105870.0,105860.0,0.094464]
[1737651003330,0.07,105880.0,105850.0,0.189432]
[1737651003535,0.0477,105900.0,105890.0,0.094434]
[1737651003536,0.07,105900.0,105890.0,0.094434]
[1737651003873,0.02,105890.0,105880.0,0.283321]
[1737651004071,0.26178529,105890.0,105870.0,0.208498]
[1737651004281,0.05,105880.0,105870.0,0.302953]
[1737651004485,0.07,105870.0,105860.0,0.359974]
[1737651004695,0.07,105860.0,105850.0,0.094468]
[1737651004905,0.09734729,105870.0,105860.0,0.094464]
[1737651005055,0.397812,105880.0,105860.0,0.094464]
[1737651005264,0.16734729,105870.0,105850.0,0.378371]
[1737651005596,0.07,105860.0,105850.0,0.000498]
[1737651005801,0.16734729,105860.0,105850.0,0.094971]
[1737651005977,0.53200128,105880.0,105860.0,0.283381]
[1737651005978,0.49225,105880.0,105860.0,0.283381]
[1737651006164,0.26179829,105880.0,105870.0,0.094455]
[1737651006370,0.07,105870.0,105860.0,0.094464]
[1737651006561,0.43070129,105880.0,105860.0,0.283383]
[1737651006787,0.39179929,105880.0,105870.0,0.094455]
[1737651007062,0.31734729,105880.0,105860.0,0.472291]
[1737651007261,0.36179429,105880.0,105860.0,0.472289]
[1737651007468,0.41179429,105880.0,105860.0,0.377832]
[1737651007722,0.05,105870.0,105860.0,0.283371]
[1737651007877,0.22,105880.0,105870.0,0.094455]
[1737651008231,0.07,105870.0,105850.0,0.094967]
[1737651008453,0.07,105870.0,105860.0,0.094464]
[1737651008612,0.164464,105860.0,105850.0,0.000498]
[1737651009171,0.453349,105880.0,105860.0,0.094458]
[1737651009394,0.14468117,105860.0,105850.0,0.000498]
[1737651009614,0.39131357,105860.0,105850.0,0.000498]
[1737651010025,0.07491634,105860.0,105850.0,0.094971]
[1737651010224,0.02491634,105860.0,105850.0,0.094971]
[1737651010435,0.4639364,105860.0,105850.0,0.000498]
[1737651010717,0.39192639,105860.0,105850.0,0.000498]
[1737651010883,0.36672639,105860.0,105850.0,0.000498]
[1737651011087,0.007,105860.0,105850.0,0.0951138]
[1737651011289,0.007,105860.0,105850.0,0.0006408]
[1737651011290,0.171464,105860.0,105850.0,0.0006408]
[1737651011486,0.26211118,105860.0,105850.0,0.0006408]
[1737651011950,0.26511118,105860.0,105850.0,0.0006408]
[1737651012638,0.26211118,105860.0,105850.0,0.0006408]
[1737651012778,0.26211118,105860.0,105850.0,0.0951138]
[1737651012779,0.16764718,105860.0,105850.0,0.0951138]
[1737651012981,0.28102809,105870.0,105850.0,0.0951138]
[1737651013203,0.02,105860.0,105850.0,0.0006408]
[1737651013424,0.07,105860.0,105850.0,0.0006408]
[1737651013834,0.14734729,105870.0,105850.0,0.0951128]
[1737651014033,0.02,105870.0,105850.0,0.2840578]
[1737651014237,0.02,105870.0,105850.0,0.3785208]
[1737651014466,0.07,105860.0,105850.0,0.0006408]
[1737651014818,0.07,105860.0,105850.0,0.0951138]
[1737651015013,0.07,105860.0,105850.0,0.0016408]
[1737651015243,0.02,105860.0,105850.0,0.0961138]
[1737651015447,0.16734729,105870.0,105850.0,0.0016408]
[1737651015655,0.07491418,105880.0,105860.0,0.094464]
[1737651015861,0.02,105840.0,105800.0,0.0001428]
[1737651016074,0.09734729,105820.0,105800.0,0.02926852]
[1737651016285,0.16734729,105830.0,105800.0,0.21829552]
[1737651016494,0.11734729,105820.0,105800.0,0.02926852]
[1737651016702,0.11734729,105820.0,105800.0,0.0946568]
[1737651016965,0.16734729,105820.0,105800.0,0.2836808]
[1737651017169,0.07,105810.0,105800.0,0.0001428]
[1737651017379,0.16734729,105810.0,105800.0,0.0001428]
[1737651018438,0.16734729,105810.0,105800.0,0.0011428]
[1737651018612,0.02049923,105820.0,105800.0,0.0956598]
[1737651018823,0.09784652,105820.0,105800.0,0.1901658]
[1737651019014,0.16784652,105820.0,105800.0,0.0956588]
[1737651019248,0.09734729,105810.0,105800.0,0.0011428]
[1737651019612,0.02,105810.0,105800.0,0.0011428]
[1737651020061,0.22049923,105820.0,105800.0,0.0001428]
[1737651020232,0.16784652,105820.0,105800.0,0.2836868]
[1737651020570,0.16784652,105820.0,105800.0,0.2836798]
[1737651021156,0.16784652,105820.0,105800.0,0.2836858]
[1737651021379,0.3220488,105820.0,105800.0,0.4727118]
[1737651021578,0.16784652,105820.0,105810.0,0.094509]
[1737651021804,0.14784652,105820.0,105800.0,0.2836808]
[1737651022080,0.14784652,105820.0,105810.0,0.094509]
[1737651022081,0.05049923,105820.0,105810.0,0.094509]
[1737651022280,0.00049923,105820.0,105810.0,0.094509]
[1737651022685,0.043,105810.0,105800.0,0.2836788]
[1737651022884,0.27454957,105810.0,105800.0,0.0001428]
[1737651023131,0.41905857,105810.0,105800.0,0.0001428]
[1737651023566,0.61640586,105810.0,105800.0,0.0001428]
[1737651023914,0.51905857,105810.0,105800.0,0.0001428]
[1737651025060,0.69326085,105810.0,105800.0,0.0001428]
[1737651025379,0.53905857,105810.0,105800.0,0.0001428]
[1737651025601,0.69326085,105810.0,105800.0,0.0001428]
[1737651025824,0.79822799,105810.0,105800.0,0.0001428]
[1737651026045,0.24902985,105770.0,105760.0,0.0069437]
[1737651026282,0.72276299,105770.0,105760.0,0.0069437]
[1737651027322,0.72326191,105770.0,105760.0,0.0069437]
[1737651027599,0.72326191,105770.0,105740.0,0.0001425]
[1737651027600,0.02,105750.0,105740.0,0.0001425]
[1737651027850,0.34657186,105750.0,105740.0,0.0001425]
[1737651028047,0.59527186,105750.0,105740.0,0.0001425]
[1737651028255,0.66017846,105750.0,105740.0,0.0001425]
[1737651028458,0.61527186,105750.0,105740.0,0.0001425]
[1737651029079,0.59527186,105750.0,105740.0,0.0001425]
[1737651029292,0.61527186,105750.0,105740.0,0.0001425]
[1737651029424,0.52623357,105740.0,105730.0,0.06924878]
[1737651029644,0.68345388,105740.0,105730.0,0.04323244]
[1737651029842,0.68345388,105740.0,105690.0,0.0001425]
[1737651029843,0.094607,105700.0,105690.0,0.0001425]
[1737651030043,0.49171686,105700.0,105690.0,0.0001425]
[1737651030250,0.56471686,105700.0,105690.0,0.0001425]
[1737651030494,0.51471686,105700.0,105690.0,0.0001425]
[1737651030695,0.56739838,105700.0,105690.0,0.0001425]
[1737651031007,0.56471686,105700.0,105690.0,0.0021425]
[1737651031138,0.54496446,105700.0,105690.0,0.0021425]
[1737651031343,0.64962703,105700.0,105690.0,0.0021425]
[1737651031546,0.094634,105670.0,105660.0,0.0161413]
[1737651031861,0.11734729,105670.0,105660.0,0.1153733]
[1737651032062,0.19034729,105670.0,105660.0,0.1153733]
[1737651032270,0.34034729,105670.0,105660.0,0.1153733]
[1737651032460,0.29034729,105670.0,105660.0,0.11779038]
[1737651032655,0.34034729,105670.0,105660.0,0.11779038]
[1737651032878,0.36498129,105670.0,105660.0,0.02314738]
[1737651033102,0.51964386,105670.0,105660.0,0.02314738]
[1737651033305,0.58514386,105670.0,105660.0,0.02314738]
[1737651033506,0.56514386,105670.0,105660.0,0.02514738]
[1737651033912,0.61514386,105670.0,105660.0,0.02514738]
[1737651034129,0.63514386,105670.0,105660.0,0.02314738]
[1737651034340,0.70174386,105670.0,105660.0,0.02314738]
[1737651034635,0.74909115,105670.0,105660.0,0.02314738]
[1737651035051,0.44231457,105650.0,105640.0,6e-05]
[1737651035251,0.07,105610.0,105600.0,0.094696]
[1737651035454,0.26203629,105610.0,105590.0,0.473505]
[1737651035656,0.16734729,105610.0,105590.0,0.473505]
[1737651035858,0.16734729,105610.0,105600.0,0.094696]
[1737651036118,0.14034729,105610.0,105600.0,0.094696]
[1737651036321,0.19084498,105610.0,105600.0,0.094696]
[1737651036977,0.28553398,105610.0,105590.0,0.378796]
[1737651037266,0.073,105600.0,105590.0,0.284098]
[1737651037509,0.023,105600.0,105590.0,0.284098]
[1737651037745,0.12034729,105600.0,105590.0,0.284098]
[1737651038018,0.16734729,105600.0,105590.0,0.0947]
[1737651038263,0.14734729,105600.0,105590.0,0.094705]
[1737651038462,0.16734729,105600.0,105580.0,0.189415]
[1737651038587,0.26204829,105600.0,105580.0,0.284127]
[1737651038813,0.26204829,105600.0,105580.0,0.473556]
[1737651039028,0.14734729,105600.0,105590.0,0.094705]
[1737651039267,0.073,105590.0,105580.0,0.094713]
[1737651039468,0.17034729,105590.0,105580.0,0.094713]
[1737651039695,0.14034729,105590.0,105580.0,0.094713]
[1737651039884,0.05,105600.0,105590.0,0.094705]
[1737651040083,0.00049769,105610.0,105600.0,0.094696]
[1737651040496,0.36253798,105610.0,105590.0,0.284099]
[1737651040704,0.16784498,105610.0,105600.0,0.094696]
[1737651040917,0.19409808,105610.0,105600.0,0.094696]
[1737651041132,0.19409808,105610.0,105590.0,0.378796]
[1737651041133,0.26253698,105610.0,105590.0,0.378796]
[1737651041336,0.26253698,105610.0,105590.0,0.473496]
[1737651041539,0.14784498,105610.0,105600.0,0.094696]
[1737651041800,0.11784498,105610.0,105600.0,0.094696]
[1737651041982,0.16784498,105610.0,105600.0,0.094696]
[1737651042183,0.16784498,105610.0,105600.0,0.002]
[1737651042388,0.37930871,105610.0,105600.0,0.002]
[1737651042828,0.073,105600.0,105590.0,0.284115]
[1737651043035,0.14034729,105600.0,105590.0,0.284115]
[1737651043241,0.19034729,105600.0,105590.0,0.094705]
[1737651043448,0.17034729,105600.0,105590.0,0.094705]
[1737651043662,0.19034729,105600.0,105590.0,0.094705]
[1737651043873,0.19034729,105600.0,105580.0,0.378834]
[1737651044079,0.19034729,105600.0,105570.0,0.38842665]
[1737651044080,0.14034729,105590.0,105570.0,0.38842665]
[1737651044184,0.043,105580.0,105570.0,0.29371165]
[1737651044385,0.09734729,105590.0,105580.0,0.094714]
[1737651044607,0.07,105600.0,105590.0,0.094705]
[1737651044807,0.023,105590.0,105580.0,0.284122]
[1737651045005,0.14034729,105590.0,105580.0,0.284122]
[1737651045864,0.02,105580.0,105570.0,0.29370865]
[1737651046112,0.28505229,105590.0,105580.0,0.094714]
[1737651046244,0.19034729,105590.0,105580.0,0.094714]
[1737651046438,0.17034729,105590.0,105570.0,0.568307]
[1737651046639,0.47447129,105590.0,105580.0,0.001]
[1737651046879,0.45447129,105590.0,105580.0,0.001]
[1737651047293,0.47447129,105590.0,105580.0,0.001]
[1737651047474,0.45447129,105590.0,105580.0,0.001]
[1737651047723,0.70913386,105590.0,105580.0,0.001]
[1737651047913,0.75573386,105590.0,105580.0,0.001]
[1737651048089,0.57704814,105570.0,105560.0,0.20584621]
[1737651048287,0.58973286,105570.0,105560.0,0.16980941]
[1737651048492,0.58973286,105570.0,105560.0,0.17616255]
[1737651048707,0.51973286,105570.0,105560.0,0.17616255]
[1737651049120,0.023,105510.0,105500.0,0.094786]
[1737651049313,0.284318,105520.0,105510.0,0.094777]
[1737651049512,0.09734729,105520.0,105510.0,0.094777]
[1737651049692,0.21211529,105520.0,105510.0,0.094777]
[1737651049899,0.21211529,105520.0,105490.0,0.0001428]
[1737651049900,0.18957,105510.0,105490.0,0.0001428]
[1737651050125,0.49679586,105500.0,105490.0,0.0001428]
[1737651050374,0.51979586,105500.0,105490.0,0.0055346]
[1737651050617,0.53979586,105500.0,105490.0,0.0055346]
[1737651050862,0.58979586,105500.0,105490.0,0.0055346]
[1737651051134,0.264795,105490.0,105480.0,0.21226401]
[1737651051383,0.51680486,105490.0,105480.0,0.21226401]
[1737651051646,0.24214229,105490.0,105480.0,0.21226401]
[1737651051893,0.09734729,105490.0,105480.0,0.30706801]
[1737651052107,0.30200986,105490.0,105480.0,0.30706801]
[1737651052316,0.16734729,105490.0,105480.0,0.30206801]
[1737651052526,0.34680486,105490.0,105480.0,0.20726401]
[1737651052730,0.55334415,105490.0,105480.0,0.20726401]
[1737651052935,0.49680486,105490.0,105480.0,0.20726401]
[1737651053140,0.49880486,105490.0,105480.0,0.20726401]